bitfinex-derivatives/quotes_BTCF0:USTF0_20241009
["timestamp","ask_amount","ask_price","bid_price","bid_amount"]
[1728501208220,0.11611076,61097.0,61092.0,0.081904]
[1728501208419,0.11611076,61097.0,61090.0,0.01638]
[1728501208420,0.11611076,61097.0,61090.0,0.20638]
[1728501208625,0.11611076,61097.0,61090.0,0.01638]
[1728501208626,0.081903,61094.0,61090.0,0.01638]
[1728501208828,0.5508,61091.0,61090.0,0.01638]
[1728501209033,0.632706,61091.0,61090.0,0.01638]
[1728501209336,0.632706,61091.0,61073.0,0.76183608]
[1728501209337,0.081918,61083.0,61077.0,0.081925]
[1728501209629,0.081921,61080.0,61077.0,0.081925]
[1728501209826,0.2833,61082.0,61073.0,0.3608]
[1728501210023,0.3608,61086.0,61077.0,0.19]
[1728501210217,0.3608,61086.0,61082.0,0.081918]
[1728501210617,0.3608,61086.0,61078.0,0.3608]
[1728501210618,0.007,61083.0,61078.0,0.3608]
[1728501210920,0.19,61080.0,61079.0,0.081922]
[1728501211125,0.271921,61080.0,61079.0,0.081922]
[1728501211529,0.081921,61080.0,61079.0,0.081922]
[1728501211828,0.081921,61080.0,61078.0,0.3608]
[1728501211829,0.012,61083.0,61078.0,0.3628]
[1728501212024,0.012,61083.0,61082.0,0.081918]
[1728501212218,0.012,61083.0,61079.0,0.19]
[1728501212424,0.08191,61088.0,61087.0,0.081911]
[1728501212620,0.0717601,61088.0,61085.0,0.00438]
[1728501212820,0.081913,61086.0,61085.0,0.00438]
[1728501213021,0.51447469,61086.0,61085.0,0.00438]
[1728501213526,0.47435755,61086.0,61085.0,0.00438]
[1728501214124,0.49035755,61086.0,61085.0,0.00638]
[1728501214327,0.49023755,61086.0,61085.0,0.00638]
[1728501214724,0.48223755,61086.0,61085.0,0.00538]
[1728501214930,0.48923755,61086.0,61085.0,0.00638]
[1728501215130,0.48823755,61086.0,61085.0,0.00638]
[1728501215328,0.081922,61079.0,61076.0,0.081926]
[1728501215522,0.081926,61077.0,61074.0,0.081928]
[1728501215834,0.081937,61068.0,61061.0,0.36325638]
[1728501216021,0.065557,61068.0,61066.0,0.081938]
[1728501216225,0.065557,61068.0,61061.0,0.36325638]
[1728501216226,0.065557,61068.0,61067.0,0.081938]
[1728501216731,0.081945,61062.0,61061.0,0.02587634]
[1728501216933,0.065555,61062.0,61061.0,0.00245638]
[1728501217134,0.09721292,61062.0,61061.0,0.00245638]
[1728501218032,0.077555,61062.0,61061.0,0.00345638]
[1728501218227,0.09282275,61062.0,61053.0,0.00354984]
[1728501218434,0.3608,61058.0,61051.0,0.00809866]
[1728501218631,0.081953,61056.0,61054.0,0.081956]
[1728501218831,0.081954,61055.0,61054.0,0.081956]
[1728501220238,0.081956,61054.0,61051.0,0.081959]
[1728501221136,0.081958,61053.0,61051.0,0.081959]
[1728501221338,0.081956,61054.0,61048.0,0.57507471]
[1728501221339,0.081958,61052.0,61048.0,0.57507471]
[1728501221541,0.081958,61052.0,61048.0,0.57419471]
[1728501221835,0.091956,61054.0,61051.0,0.081959]
[1728501222038,0.091956,61054.0,61050.0,0.081961]
[1728501222236,0.091956,61054.0,61048.0,0.57503471]
[1728501222433,0.081958,61052.0,61051.0,0.08196]
[1728501223144,0.01,61054.0,61053.0,0.081957]
[1728501223145,0.005,61054.0,61053.0,0.081957]
[1728501223439,0.001,61054.0,61053.0,0.271957]
[1728501223637,0.082956,61054.0,61053.0,0.271957]
[1728501224032,0.001,61054.0,61053.0,0.271957]
[1728501224233,0.081944,61063.0,61053.0,0.5508]
[1728501224439,0.081944,61063.0,61062.0,0.19]
[1728501224742,0.08194,61066.0,61063.0,0.081944]
[1728501225542,0.081941,61065.0,61063.0,0.081944]
[1728501226644,0.3668,61064.0,61063.0,0.082944]
[1728501226844,0.3668,61064.0,61063.0,0.083944]
[1728501226845,0.3728,61064.0,61063.0,0.083944]
[1728501227046,0.3728,61064.0,61063.0,0.10643043]
[1728501227440,0.3728,61064.0,61063.0,0.02448643]
[1728501227646,0.3668,61064.0,61063.0,0.02348643]
[1728501227847,0.3728,61064.0,61063.0,0.10643043]
[1728501228341,0.454742,61064.0,61063.0,0.10643043]
[1728501228733,0.3728,61064.0,61063.0,0.10643043]
[1728501229144,0.454742,61064.0,61063.0,0.10643043]
[1728501229345,0.454742,61064.0,61063.0,0.10543043]
[1728501229346,0.448742,61064.0,61063.0,0.10543043]
[1728501229543,0.454742,61064.0,61063.0,0.10643043]
[1728501229937,0.3728,61064.0,61063.0,0.10643043]
[1728501230442,0.3608,61064.0,61062.0,0.19]
[1728501230648,0.454742,61064.0,61063.0,0.083944]
[1728501231041,0.448742,61064.0,61063.0,0.082944]
[1728501231443,0.454742,61064.0,61063.0,0.002]
[1728501232939,0.454742,61064.0,61063.0,0.083944]
[1728501233141,0.448742,61064.0,61063.0,0.082944]
[1728501233547,0.012,61064.0,61063.0,0.575224]
[1728501233735,0.012,61064.0,61063.0,1.270224]
[1728501234142,0.006,61064.0,61063.0,1.269224]
[1728501234351,0.012,61064.0,61063.0,1.270224]
[1728501234651,0.3608,61071.0,61070.0,0.081934]
[1728501234839,0.3608,61071.0,61070.0,0.271934]
[1728501235044,0.3608,61071.0,61070.0,0.763174]
[1728501236051,0.3608,61071.0,61070.0,0.271934]
[1728501236450,0.3608,61071.0,61070.0,0.191]
[1728501236451,0.3718,61071.0,61070.0,0.191]
[1728501236749,0.3718,61071.0,61070.0,0.002]
[1728501236750,0.3798,61071.0,61070.0,0.002]
[1728501237052,0.452733,61071.0,61070.0,0.001]
[1728501237437,0.081937,61068.0,61067.0,0.10488242]
[1728501238953,0.3628,61071.0,61067.0,0.02294442]
[1728501239152,0.3628,61071.0,61070.0,0.271934]
[1728501239450,0.3628,61071.0,61070.0,0.081934]
[1728501239849,0.3628,61071.0,61070.0,0.271934]
[1728501240045,0.081928,61075.0,61070.0,0.271934]
[1728501240251,0.081928,61075.0,61074.0,0.271929]
[1728501241644,0.081928,61075.0,61074.0,0.39229752]
[1728501242040,0.081927,61075.0,61074.0,0.31036852]
[1728501242452,0.085927,61075.0,61074.0,0.39229752]
[1728501242856,0.004,61075.0,61074.0,0.39229752]
[1728501243153,0.009,61075.0,61074.0,0.39229752]
[1728501243548,0.009,61075.0,61070.0,0.0233427]
[1728501243756,0.009,61075.0,61074.0,0.081929]
[1728501243944,0.301726,61078.0,61073.0,0.19]
[1728501244255,0.301726,61078.0,61075.0,0.081614]
[1728501244456,0.081926,61077.0,61076.0,0.081925]
[1728501245442,0.081926,61077.0,61076.0,0.163539]
[1728501246446,0.087926,61077.0,61076.0,0.164539]
[1728501246647,0.090926,61077.0,61076.0,0.165539]
[1728501246848,0.33227839,61086.0,61076.0,0.165539]
[1728501247049,0.19,61083.0,61076.0,0.165539]
[1728501247245,0.19,61083.0,61076.0,0.083925]
[1728501247946,0.081926,61077.0,61076.0,0.10667776]
[1728501248960,0.081926,61077.0,61076.0,0.10567776]
[1728501249848,0.08192,61081.0,61077.0,0.081925]
[1728501250049,0.43754886,61086.0,61079.0,0.19]
[1728501250050,0.0986,61085.0,61079.0,0.19]
[1728501250250,0.0986,61085.0,61084.0,0.271915]
[1728501251154,0.0986,61085.0,61079.0,0.3608]
[1728501251353,0.19,61081.0,61077.0,0.081924]
[1728501251563,0.081923,61078.0,61077.0,0.081924]
[1728501251748,0.1017,61080.0,61077.0,0.082924]
[1728501251948,0.4594,61085.0,61079.0,0.19]
[1728501252144,0.4594,61085.0,61083.0,0.081916]
[1728501252145,0.081915,61084.0,61083.0,0.081916]
[1728501252349,0.0225806,61091.0,61081.0,0.3608]
[1728501252652,0.081918,61082.0,61081.0,0.3608]
[1728501252852,0.081918,61082.0,61081.0,0.442719]
[1728501253557,0.081918,61082.0,61081.0,0.443719]
[1728501254452,0.081918,61082.0,61081.0,0.444719]
[1728501254759,0.22612753,61099.0,61081.0,0.56079645]
[1728501254760,0.081911,61088.0,61081.0,0.56079645]
[1728501255056,0.081911,61088.0,61087.0,0.081911]
[1728501255250,0.5546,61097.0,61086.0,0.55172]
[1728501255451,0.081908,61090.0,61089.0,0.081908]
[1728501256655,0.081908,61090.0,61089.0,0.082908]
[1728501257955,0.081908,61090.0,61089.0,0.083908]
[1728501258957,0.081908,61090.0,61089.0,0.002]
[1728501259266,0.081908,61090.0,61086.0,0.3608]
[1728501259267,0.081911,61087.0,61086.0,0.3608]
[1728501259470,0.271911,61087.0,61086.0,0.3608]
[1728501259658,0.081917,61083.0,61082.0,0.081918]
[1728501262559,0.0038,61095.0,61086.0,0.001]
[1728501262765,0.001,61087.0,61086.0,0.272913]
[1728501262966,0.082911,61087.0,61086.0,0.272913]
[1728501263169,0.001,61087.0,61086.0,0.272913]
[1728501263573,0.082911,61087.0,61086.0,0.082913]
[1728501264064,0.082911,61087.0,61086.0,0.001]
[1728501264269,0.082911,61087.0,61086.0,0.002]
[1728501264464,0.081911,61087.0,61086.0,0.001]
[1728501264673,0.11355613,61087.0,61086.0,0.001]
[1728501264966,0.2432271,61087.0,61086.0,0.001]
[1728501265155,0.36527481,61087.0,61086.0,0.001]
[1728501265360,0.20395871,61087.0,61086.0,0.001]
[1728501265559,0.20395871,61087.0,61080.0,0.3608]
[1728501265560,0.081919,61081.0,61080.0,0.3608]
[1728501265856,0.15368186,61081.0,61080.0,0.442721]
[1728501266068,0.20396871,61081.0,61080.0,0.442721]
[1728501266471,0.12204971,61081.0,61080.0,0.442721]
[1728501266669,0.20396871,61081.0,61080.0,0.442721]
[1728501266869,0.34935214,61081.0,61080.0,0.442721]
[1728501267065,0.26743314,61081.0,61080.0,0.632721]
[1728501267373,0.07176286,61081.0,61080.0,0.632721]
[1728501267673,0.14538343,61083.0,61082.0,0.081918]
[1728501267869,0.26743418,61083.0,61082.0,0.081918]
[1728501268059,0.12205075,61083.0,61082.0,0.081918]
[1728501268261,0.081917,61083.0,61082.0,0.081918]
[1728501268564,0.081925,61078.0,61077.0,0.081925]
[1728501268765,0.24345715,61081.0,61080.0,0.081921]
[1728501269066,0.36551845,61081.0,61080.0,0.081921]
[1728501269572,0.2039813,61081.0,61080.0,0.081921]
[1728501269866,0.2039813,61081.0,61076.0,0.00245576]
[1728501270068,0.081925,61078.0,61077.0,0.081923]
[1728501270371,0.12206215,61079.0,61076.0,0.00245576]
[1728501270571,0.24355269,61081.0,61076.0,0.00245576]
[1728501270572,0.14546183,61077.0,61076.0,0.08438176]
[1728501270765,0.26752398,61077.0,61076.0,0.08438176]
[1728501271473,0.07177135,61077.0,61076.0,0.08438176]
[1728501271673,0.04093203,61079.0,61077.0,0.001]
[1728501271862,0.04093203,61079.0,61078.0,0.11943035]
[1728501272775,0.04093203,61079.0,61076.0,0.08438076]
[1728501272776,0.081918,61082.0,61076.0,0.08438076]
[1728501272972,0.081921,61080.0,61079.0,0.08186195]
[1728501273176,0.081921,61080.0,61079.0,0.20097834]
[1728501273678,0.081921,61080.0,61079.0,0.08186195]
[1728501274271,0.081921,61080.0,61079.0,0.16378395]
[1728501274963,0.081921,61080.0,61061.0,0.081946]
[1728501274964,1.534881,61080.0,61069.0,0.09814472]
[1728501275176,0.442733,61071.0,61070.0,0.11915297]
[1728501275373,0.081934,61070.0,61068.0,0.06547531]
[1728501275568,0.081944,61063.0,61062.0,0.3608]
[1728501275778,0.081944,61063.0,61062.0,0.081945]
[1728501276077,0.081944,61063.0,61058.0,0.1059]
[1728501276078,0.081949,61060.0,61059.0,0.081948]
[1728501277770,0.19,61069.0,61058.0,0.1059]
[1728501277977,0.081949,61059.0,61058.0,0.13493693]
[1728501279068,0.081949,61059.0,61058.0,0.15893693]
[1728501279271,0.081949,61059.0,61058.0,0.22426553]
[1728501279771,0.081949,61059.0,61058.0,0.24088693]
[1728501280173,0.081937,61068.0,61058.0,0.24088693]
[1728501280174,0.081945,61063.0,61061.0,0.081946]
[1728501280480,0.081945,61063.0,61062.0,0.632745]
[1728501280973,0.081945,61063.0,61062.0,0.69805257]
[1728501281277,0.08194,61066.0,61065.0,0.081939]
[1728501281472,0.081942,61064.0,61063.0,0.06529524]
[1728501281675,0.081944,61063.0,61062.0,0.43709524]
[1728501281880,0.081944,61063.0,61062.0,0.01188]
[1728501282173,0.081944,61063.0,61056.0,0.36176]
[1728501282174,1.09128,61063.0,61056.0,0.00096]
[1728501282381,0.27195,61058.0,61054.0,0.04897581]
[1728501282578,0.08195,61058.0,61054.0,0.15884722]
[1728501282792,0.08195,61058.0,61055.0,0.04897581]
[1728501283169,0.08195,61058.0,61054.0,0.15884722]
[1728501284382,0.08195,61058.0,61054.0,0.10987141]
[1728501284576,0.08295,61058.0,61057.0,0.03045619]
[1728501285175,0.44375,61058.0,61057.0,0.03045619]
[1728501285487,0.08295,61058.0,61057.0,0.02945619]
[1728501286474,0.11133365,61058.0,61057.0,0.02945619]
[1728501287272,0.11033365,61058.0,61057.0,0.01645619]
[1728501287884,0.11033365,61058.0,61057.0,0.00345619]
[1728501288091,0.11033365,61058.0,61057.0,0.00445619]
[1728501288589,0.081964,61048.0,61047.0,0.28352044]
[1728501288788,0.081964,61048.0,61046.0,0.081965]
[1728501288789,0.081965,61047.0,61046.0,0.081965]
[1728501289085,0.081973,61044.0,61043.0,0.08197]
[1728501290981,0.081973,61041.0,61040.0,0.47074752]
[1728501292191,0.001,61044.0,61040.0,0.38877452]
[1728501292484,0.001,61044.0,61043.0,0.27197]
[1728501293085,0.081968,61045.0,61043.0,0.27197]
[1728501293086,0.081968,61045.0,61043.0,0.19]
[1728501293286,0.081968,61045.0,61044.0,0.081969]
[1728501294388,0.082968,61045.0,61044.0,0.095969]
[1728501295891,0.082968,61045.0,61044.0,0.109969]
[1728501296492,0.082968,61045.0,61044.0,0.028]
[1728501298196,0.082968,61045.0,61044.0,0.07697581]
[1728501299188,0.082968,61045.0,61044.0,0.028]
[1728501299484,0.082968,61045.0,61044.0,0.109969]
[1728501300894,1.233768,61045.0,61044.0,0.028]
[1728501301794,0.633768,61045.0,61044.0,0.028]
[1728501302388,0.443768,61045.0,61044.0,0.028]
[1728501303400,0.633768,61045.0,61044.0,0.028]
[1728501305495,0.443768,61045.0,61044.0,0.028]
[1728501305700,0.082968,61045.0,61044.0,0.15889082]
[1728501305888,0.082968,61045.0,61044.0,0.109969]
[1728501306092,0.082968,61045.0,61044.0,0.470769]
[1728501307492,0.082968,61045.0,61044.0,0.72606424]
[1728501307493,0.001,61045.0,61044.0,0.72606424]
[1728501307811,0.00625748,61054.0,61047.0,0.081964]
[1728501308099,0.08195,61059.0,61058.0,0.08195]
[1728501308100,0.0038,61059.0,61058.0,0.08195]
[1728501308299,0.19,61067.0,61062.0,0.081945]
[1728501308300,0.11097198,61063.0,61062.0,0.081945]
[1728501308496,0.081944,61063.0,61062.0,0.13096033]
[1728501308702,0.081944,61063.0,61062.0,0.081945]
[1728501308894,1.5,61066.0,61065.0,0.081941]
[1728501309293,0.081942,61064.0,61063.0,0.04901417]
[1728501309496,0.081945,61062.0,61061.0,0.04901417]
[1728501309694,0.081945,61062.0,61058.0,0.42615377]
[1728501309695,0.19,61062.0,61060.0,0.04901417]
[1728501310002,0.19,61062.0,61058.0,0.3608]
[1728501310003,0.19,61062.0,61059.0,0.08169864]
[1728501310203,0.5508,61066.0,61059.0,0.08169864]
[1728501310399,0.081945,61063.0,61062.0,0.081944]
[1728501310592,0.081948,61060.0,61059.0,0.081949]
[1728501310791,0.081945,61063.0,61062.0,0.081945]
[1728501311193,0.63274,61066.0,61059.0,0.08168862]
[1728501311194,0.081946,61061.0,61060.0,0.18738862]
[1728501311397,0.081946,61061.0,61060.0,0.187648]
[1728501311601,0.003,61063.0,61061.0,0.081946]
[1728501311799,0.003,61063.0,61062.0,0.081945]
[1728501312600,0.084944,61063.0,61062.0,0.081945]
[1728501312800,0.081945,61062.0,61061.0,0.08168862]
[1728501313000,0.084944,61063.0,61060.0,0.26933562]
[1728501313301,0.081946,61061.0,61060.0,0.1057]
[1728501313794,0.085946,61061.0,61060.0,0.1057]
[1728501314395,0.083946,61061.0,61060.0,0.1057]
[1728501315290,0.083946,61061.0,61060.0,0.17102654]
[1728501315703,0.085946,61061.0,61060.0,0.06532654]
[1728501316103,0.081949,61059.0,61058.0,0.06532654]
[1728501316295,0.271949,61059.0,61058.0,0.06532654]
[1728501316495,0.19,61059.0,61058.0,0.06532155]
[1728501316694,0.081949,61059.0,61058.0,0.06532155]
[1728501316901,0.081953,61056.0,61055.0,0.081953]
[1728501317115,0.11361294,61056.0,61055.0,0.081953]
[1728501317405,0.081956,61054.0,61053.0,0.45886]
[1728501317606,0.11361594,61054.0,61053.0,0.4579]
[1728501317999,0.11361594,61054.0,61053.0,0.539857]
[1728501318597,0.081944,61063.0,61053.0,0.539857]
[1728501318797,0.454133,61071.0,61061.0,0.081946]
[1728501318798,0.07179466,61062.0,61061.0,0.081946]
[1728501319007,0.03165943,61062.0,61061.0,0.081946]
[1728501319207,0.081948,61060.0,61058.0,0.081949]
[1728501319408,0.03165943,61059.0,61058.0,0.081949]
[1728501319994,0.03165943,61059.0,61058.0,0.442749]
[1728501321110,0.03165764,61059.0,61058.0,0.44275]
[1728501321909,0.081946,61061.0,61059.0,0.081948]
[1728501322105,0.0316574,61060.0,61059.0,0.081949]
[1728501322507,0.57854855,61066.0,61064.0,0.081941]
[1728501322508,0.08194,61066.0,61064.0,0.081941]
[1728501322699,0.08194,61066.0,61064.0,0.081942]
[1728501322700,0.03165655,61065.0,61064.0,0.081942]
[1728501323106,0.08194,61066.0,61064.0,0.3608]
[1728501323412,0.08194,61066.0,61065.0,0.081941]
[1728501324106,0.03165423,61066.0,61065.0,0.271941]
[1728501324305,0.00625673,61076.0,61071.0,0.081933]
[1728501324510,0.07177962,61075.0,61071.0,0.081933]
[1728501324697,0.03165252,61074.0,61071.0,0.081933]
[1728501325011,0.081931,61073.0,61071.0,0.442733]
[1728501325208,0.03031331,61076.0,61075.0,0.081927]
[1728501325209,0.00245673,61076.0,61075.0,0.081927]
[1728501326407,1.82628273,61085.0,61075.0,0.3608]
[1728501326713,1.82628273,61085.0,61084.0,0.3608]
[1728501326714,1.90819673,61085.0,61084.0,0.3608]
[1728501326915,1.58169673,61085.0,61084.0,0.3608]
[1728501327311,2.67281673,61085.0,61084.0,0.3608]
[1728501327508,2.78281673,61085.0,61084.0,0.3608]
[1728501327823,2.78581673,61085.0,61084.0,0.3608]
[1728501328010,2.81418589,61085.0,61084.0,0.3608]
[1728501328203,3.00418589,61085.0,61084.0,0.3608]
[1728501328409,3.01718589,61085.0,61084.0,0.3618]
[1728501328814,3.37798589,61085.0,61075.0,0.3618]
[1728501329008,0.081926,61076.0,61075.0,0.3618]
[1728501329915,0.271926,61076.0,61075.0,0.3618]
[1728501330503,0.284926,61076.0,61075.0,0.3618]
[1728501330815,0.287926,61076.0,61075.0,0.3628]
[1728501332606,0.287926,61076.0,61075.0,0.5528]
[1728501332607,0.016,61076.0,61075.0,0.5528]
[1728501332818,0.3608,61102.0,61086.0,0.081913]
[1728501333114,0.08189,61104.0,61091.0,0.442706]
[1728501333115,0.081906,61092.0,61091.0,0.442706]
[1728501333917,0.10770851,61092.0,61091.0,0.442706]
[1728501334303,0.12170851,61092.0,61091.0,0.443706]
[1728501334711,0.10770851,61092.0,61088.0,0.081909]
[1728501334922,0.081911,61087.0,61086.0,0.001]
[1728501335712,0.081913,61086.0,61085.0,0.442714]
[1728501336618,0.03680251,61092.0,61085.0,0.3608]
[1728501336818,0.10470751,61092.0,61091.0,0.081906]
[1728501338617,0.10470751,61092.0,61091.0,0.082906]
[1728501339018,0.10470751,61092.0,61091.0,0.083906]
[1728501340024,0.29470751,61092.0,61091.0,0.002]
[1728501341114,0.4755146,61092.0,61090.0,0.231643]
[1728501341327,0.081906,61091.0,61090.0,0.231643]
[1728501342324,0.081906,61091.0,61090.0,0.232643]
[1728501343020,0.081906,61091.0,61090.0,0.231643]
[1728501343218,0.083906,61091.0,61090.0,0.002]
[1728501344030,0.083906,61091.0,61090.0,0.083907]
[1728501344228,0.083906,61091.0,61090.0,0.273907]
[1728501344522,0.002,61091.0,61090.0,0.273907]
[1728501344721,0.08189,61103.0,61097.0,0.081898]
[1728501344926,0.08189,61103.0,61097.0,0.442698]
[1728501345117,1.5,61102.0,61097.0,0.442698]
[1728501345316,1.50120001,61102.0,61097.0,0.442698]
[1728501345730,0.08435342,61098.0,61097.0,0.442698]
[1728501345916,0.08435342,61098.0,61097.0,0.443698]
[1728501345917,0.08635342,61098.0,61097.0,0.443698]
[1728501346113,0.00445642,61098.0,61097.0,0.443698]
[1728501346327,0.03363815,61098.0,61097.0,0.26439883]
[1728501346514,0.002,61098.0,61097.0,0.26439883]
[1728501346718,0.002,61098.0,61097.0,0.34629683]
[1728501348626,0.083897,61098.0,61097.0,0.34629683]
[1728501349423,0.083857,61098.0,61097.0,0.26439883]
[1728501349826,0.444657,61098.0,61097.0,0.002]
[1728501350421,0.00196,61098.0,61097.0,0.5518]
[1728501350621,0.00120001,61102.0,61101.0,0.081893]
[1728501350827,0.081887,61105.0,61103.0,0.08189]
[1728501351023,0.081887,61105.0,61101.0,0.19]
[1728501351024,0.081887,61105.0,61102.0,0.3608]
[1728501351234,0.081886,61107.0,61106.0,0.081884]
[1728501351532,0.081886,61107.0,61106.0,0.271884]
[1728501352030,0.38328969,61110.0,61102.0,0.3608]
[1728501352031,0.08189,61103.0,61102.0,0.3608]
[1728501353536,1.58289,61103.0,61102.0,0.3618]
[1728501353932,1.58289,61103.0,61102.0,0.443691]
[1728501354331,1.58289,61103.0,61102.0,0.444691]
[1728501354634,1.58289,61103.0,61102.0,0.26439002]
[1728501354635,1.76365708,61103.0,61102.0,0.26439002]
[1728501356741,1.704912,61103.0,61102.0,0.26439002]
[1728501356942,1.623022,61103.0,61102.0,0.26439002]
[1728501357333,1.704912,61103.0,61102.0,0.26439002]
[1728501357632,1.76365477,61103.0,61102.0,0.26439002]
[1728501359635,1.76365477,61103.0,61102.0,0.45439002]
[1728501360732,1.704912,61103.0,61102.0,0.45439002]
[1728501361749,1.58289,61103.0,61102.0,0.26439002]
[1728501362939,1.58289,61103.0,61102.0,0.45439002]
[1728501363445,1.501,61103.0,61102.0,0.45439002]
[1728501364638,0.081877,61113.0,61105.0,0.081887]
[1728501364841,0.00577098,61115.0,61111.0,0.5508]
[1728501365146,0.08384698,61115.0,61114.0,0.081875]
[1728501365359,0.10728176,61115.0,61114.0,0.081875]
[1728501365544,0.00197098,61115.0,61114.0,0.081875]
[1728501366050,0.00245479,61117.0,61114.0,0.081875]
[1728501366248,0.00245437,61135.0,61116.0,0.19]
[1728501366447,0.00245437,61135.0,61131.0,0.081851]
[1728501366448,0.081852,61132.0,61131.0,0.081851]
[1728501366651,0.081852,61132.0,61131.0,0.271851]
[1728501367351,0.14523952,61153.0,61131.0,0.19]
[1728501367352,0.081835,61144.0,61131.0,0.19]
[1728501367544,0.081838,61142.0,61141.0,0.3608]
[1728501367740,1.2041407,61142.0,61141.0,0.3608]
[1728501368145,2.7041407,61142.0,61141.0,0.3608]
[1728501368341,2.672518,61142.0,61141.0,0.3608]
[1728501369150,2.072518,61142.0,61141.0,0.3608]
[1728501369337,2.072518,61142.0,61141.0,0.3618]
[1728501369646,1.5,61142.0,61141.0,0.804439]
[1728501369855,0.081828,61150.0,61149.0,0.081826]
[1728501370044,0.081828,61150.0,61149.0,0.632626]
[1728501370249,1.5,61150.0,61149.0,0.632628]
[1728501370649,0.02241333,61154.0,61153.0,0.081823]
[1728501370948,0.00245418,61160.0,61153.0,0.19]
[1728501371260,0.081816,61158.0,61157.0,0.3608]
[1728501372355,0.081816,61158.0,61157.0,0.632618]
[1728501373343,0.081816,61158.0,61157.0,0.633618]
[1728501373545,0.02537743,61160.0,61159.0,0.081815]
[1728501373851,0.10719143,61160.0,61159.0,0.442615]
[1728501374245,0.02537743,61160.0,61159.0,0.442615]
[1728501374541,0.081806,61166.0,61165.0,0.081807]
[1728501374748,1.581806,61166.0,61165.0,0.632607]
[1728501375546,1.581806,61166.0,61165.0,0.3608]
[1728501375941,0.081814,61160.0,61159.0,0.3628]
[1728501376346,0.081814,61160.0,61159.0,0.3618]
[1728501376745,0.26240627,61160.0,61159.0,0.05067221]
[1728501376945,0.26240627,61160.0,61155.0,0.08182]
[1728501376946,0.081823,61153.0,61152.0,0.3608]
[1728501377158,0.26241527,61153.0,61152.0,0.3608]
[1728501377652,0.26241527,61153.0,61141.0,0.5908]
[1728501377653,0.081838,61142.0,61141.0,0.44328518]
[1728501377950,0.26243027,61142.0,61141.0,0.44232518]
[1728501378154,0.26243027,61142.0,61141.0,0.52416418]
[1728501378655,0.18059227,61142.0,61141.0,0.52416418]
[1728501378950,0.26243027,61142.0,61141.0,0.52416418]
[1728501379548,0.26239027,61142.0,61141.0,0.3608]
[1728501380751,0.26339027,61142.0,61141.0,0.3608]
[1728501380953,0.26339027,61142.0,61141.0,0.2668993]
[1728501382050,0.18155227,61142.0,61135.0,0.2349]
[1728501382246,0.121904,61141.0,61135.0,0.2349]
[1728501382457,0.081843,61139.0,61138.0,0.081842]
[1728501382661,0.2308442,61139.0,61138.0,0.081842]
[1728501383755,0.2308442,61139.0,61135.0,0.07820916]
[1728501383961,0.1490012,61138.0,61137.0,0.081844]
[1728501384361,0.1490012,61138.0,61137.0,0.361844]
[1728501384759,0.081843,61139.0,61138.0,0.081843]
[1728501385154,0.3608,61146.0,61137.0,0.28]
[1728501385355,0.08184,61141.0,61140.0,0.08184]
[1728501385555,0.3608,61146.0,61142.0,0.081837]
[1728501385755,0.081838,61143.0,61142.0,0.081837]
[1728501386261,0.3608,61146.0,61141.0,0.28]
[1728501386462,0.08183,61149.0,61148.0,0.081828]
[1728501387562,0.08183,61149.0,61148.0,0.082828]
[1728501388062,0.08183,61149.0,61148.0,0.001]
[1728501388259,0.08183,61149.0,61148.0,0.002]
[1728501393662,0.1219083,61149.0,61148.0,0.002]
[1728501393963,0.1219083,61149.0,61135.0,0.0038]
[1728501393964,0.081846,61136.0,61135.0,0.0038]
[1728501394161,0.081846,61136.0,61131.0,0.3608]
[1728501394162,0.081851,61132.0,61131.0,0.3608]
[1728501394361,1.581851,61132.0,61131.0,0.3608]
[1728501394568,0.081854,61130.0,61127.0,0.3608]
[1728501394864,0.442654,61130.0,61122.0,0.08431781]
[1728501395053,0.08186,61126.0,61125.0,0.08186]
[1728501395967,0.08186,61126.0,61125.0,0.44266]
[1728501396558,0.08186,61126.0,61125.0,0.45066]
[1728501396962,0.08286,61126.0,61125.0,0.46166]
[1728501397565,0.0038,61136.0,61135.0,0.081847]
[1728501397871,0.3696,61147.0,61135.0,0.081847]
[1728501397872,0.22622725,61143.0,61142.0,0.081838]
[1728501398169,0.12191979,61143.0,61142.0,0.722638]
[1728501398360,0.12191979,61143.0,61142.0,0.3608]
[1728501398555,0.22742226,61147.0,61142.0,0.722638]
[1728501398767,0.04008163,61146.0,61145.0,0.081834]
[1728501399465,0.08294801,61150.0,61149.0,0.081828]
[1728501399667,0.081828,61150.0,61149.0,0.361828]
[1728501399971,0.081828,61150.0,61149.0,0.48654648]
[1728501400264,0.081828,61150.0,61149.0,0.84734648]
[1728501400661,0.088828,61150.0,61149.0,0.84834648]
[1728501400865,0.088828,61150.0,61149.0,0.12571848]
[1728501401059,1.50112001,61153.0,61149.0,0.12571848]
[1728501401257,0.081826,61151.0,61150.0,0.22257563]
[1728501401966,0.081826,61151.0,61150.0,0.12471848]
[1728501402362,0.081826,61151.0,61150.0,0.20627528]
[1728501402562,0.081826,61151.0,61150.0,0.12471848]
[1728501403167,0.081826,61151.0,61150.0,0.48654548]
[1728501403473,0.089826,61151.0,61150.0,0.48854548]
[1728501404061,0.089826,61151.0,61150.0,0.20854548]
[1728501405470,0.089826,61151.0,61150.0,0.12671848]
[1728501405767,0.089826,61151.0,61150.0,0.22464304]
[1728501406073,0.089826,61151.0,61150.0,0.12671848]
[1728501406271,0.089826,61151.0,61150.0,0.22464304]
[1728501406765,0.089826,61151.0,61150.0,0.002]
[1728501407473,0.369826,61151.0,61150.0,0.002]
[1728501408962,1.61050553,61151.0,61150.0,0.001]
[1728501409468,3.11050553,61151.0,61150.0,0.001]
[1728501410370,3.11050553,61151.0,61137.0,0.0038]